[Event "Titled Tuesday Blitz August 16 Early 2022"]
[White "Hess, Robert"]
[Black "Babazada, Khazar"]
[WhiteFideId "2022036"]
[BlackFideId "13413554"]
[WhiteElo "2557"]
[BlackElo "2409"]
[Result "0-1"]
[Round "11"]
[TimeControl "180+1"]
[Date "2022.08.16"]
[WhiteClock "0:00:03"]
[BlackClock "0:00:32"]

1. e4 {[%clk 0:03:00]}  Nf6 {[%clk 0:02:59]} 2. e5 {[%clk 0:03:00]}  Nd5 {[%clk 0:03:00]} 3. d4 {[%clk 0:02:59]}  d6 {[%clk 0:03:00]} 4. c4 {[%clk 0:03:00]}  Nb6 {[%clk 0:03:00]} 5. exd6 {[%clk 0:03:01]}  cxd6 {[%clk 0:03:01]} 6. Nc3 {[%clk 0:03:00]}  g6 {[%clk 0:03:00]} 7. Be3 {[%clk 0:03:01]}  Bg7 {[%clk 0:03:01]} 8. Rc1 {[%clk 0:03:01]}  O-O {[%clk 0:03:01]} 9. b3 {[%clk 0:03:01]}  Bf5 {[%clk 0:03:02]} 10. Nf3 {[%clk 0:02:59]}  d5 {[%clk 0:03:00]} 11. c5 {[%clk 0:02:57]}  Nc8 {[%clk 0:03:01]} 12. b4 {[%clk 0:02:53]}  a6 {[%clk 0:03:00]} 13. Qb3 {[%clk 0:02:51]}  e6 {[%clk 0:03:00]} 14. h3 {[%clk 0:02:47]}  Ne7 {[%clk 0:03:00]} 15. g4 {[%clk 0:02:43]}  Be4 {[%clk 0:03:00]} 16. Nxe4 {[%clk 0:02:43]}  dxe4 {[%clk 0:03:01]} 17. Ng5 {[%clk 0:02:35]}  Nbc6 {[%clk 0:03:01]} 18. Rd1 {[%clk 0:02:21]}  Nd5 {[%clk 0:02:39]} 19. h4 {[%clk 0:01:52]}  Ncxb4 {[%clk 0:02:32]} 20. Nxe4 {[%clk 0:01:42]}  a5 {[%clk 0:02:01]} 21. Bg5 {[%clk 0:01:28]}  Qc7 {[%clk 0:01:59]} 22. Bc4 {[%clk 0:01:18]}  a4 {[%clk 0:01:59]} 23. Qb1 {[%clk 0:01:03]}  Nc6 {[%clk 0:01:31]} 24. Bxd5 {[%clk 0:00:33]}  exd5 {[%clk 0:01:31]} 25. Nf6+ {[%clk 0:00:34]}  Bxf6 {[%clk 0:01:24]} 26. Bxf6 {[%clk 0:00:35]}  Qf4 {[%clk 0:01:22]} 27. g5 {[%clk 0:00:35]}  Rfe8+ {[%clk 0:01:17]} 28. Kf1 {[%clk 0:00:34]}  Qf3 {[%clk 0:01:18]} 29. Rh2 {[%clk 0:00:22]}  Re4 {[%clk 0:01:13]} 30. Qd3 {[%clk 0:00:15]}  Qf4 {[%clk 0:01:09]} 31. Qg3 {[%clk 0:00:10]}  Qf5 {[%clk 0:01:09]} 32. h5 {[%clk 0:00:07]}  Rae8 {[%clk 0:01:01]} 33. hxg6 {[%clk 0:00:07]}  fxg6 {[%clk 0:01:02]} 34. Qc7 {[%clk 0:00:06]}  Ne7 {[%clk 0:00:55]} 35. Qxb7 {[%clk 0:00:06]}  Qf4 {[%clk 0:00:56]} 36. Rh3 {[%clk 0:00:05]}  Qg4 {[%clk 0:00:55]} 37. Rdd3 {[%clk 0:00:04]}  h5 {[%clk 0:00:39]} 38. gxh6 {[%clk 0:00:04]}  Kh7 {[%clk 0:00:30]} 39. Rdg3 {[%clk 0:00:02]}  Qd1+ {[%clk 0:00:31]} 40. Kg2 {[%clk 0:00:02]}  Re1 {[%clk 0:00:32]} 41. Rh2 {[%clk 0:00:02]}  Rg1+ {[%clk 0:00:30]} 42. Kh3 {[%clk 0:00:03]}  Qh5+ {[%clk 0:00:31]} 43. Bh4 {[%clk 0:00:03]}  Qf5+ {[%clk 0:00:31]} 44. Rg4 {[%clk 0:00:03]}  Qxg4# {[%clk 0:00:32]} 0-1


[Site "https://www.chess.com"]

[Event "Titled Tuesday Blitz August 16 Early 2022"]
[White "Khabinets, Ivan"]
[Black "Papayan, Oleg"]
[WhiteFideId "14115980"]
[BlackFideId "4193911"]
[WhiteElo "2114"]
[BlackElo "2038"]
[Result "1-0"]
[Round "11"]
[TimeControl "180+2"]
[Date "2022.08.18"]
[WhiteClock "0:00:00"]
[BlackClock "0:00:00"]

1. e4 {[%clk 0:00:00]}  e5 {[%clk 0:00:00]} 2. Nf3 {[%clk 0:00:00]}  Nc6 {[%clk 0:00:00]} 3. Bb5 {[%clk 0:00:00]}  a6 {[%clk 0:00:00]} 4. Ba4 {[%clk 0:00:00]}  Nf6 {[%clk 0:00:00]} 5. Nc3 {[%clk 0:00:00]}  b5 {[%clk 0:00:00]} 6. Bb3 {[%clk 0:00:00]}  Bc5 {[%clk 0:00:00]} 7. O-O {[%clk 0:00:00]}  O-O {[%clk 0:00:00]} 8. d3 {[%clk 0:00:00]}  h6 {[%clk 0:00:00]} 9. a4 {[%clk 0:00:00]}  b4 {[%clk 0:00:00]} 10. Nd5 {[%clk 0:00:00]}  d6 {[%clk 0:00:00]} 11. a5 {[%clk 0:00:00]}  Rb8 {[%clk 0:00:00]} 12. h3 {[%clk 0:00:00]}  Nxd5 {[%clk 0:00:00]} 13. Bxd5 {[%clk 0:00:00]}  Ne7 {[%clk 0:00:00]} 14. Bc4 {[%clk 0:00:00]}  Ng6 {[%clk 0:00:00]} 15. Be3 {[%clk 0:00:00]}  Bxe3 {[%clk 0:00:00]} 16. fxe3 {[%clk 0:00:00]}  c6 {[%clk 0:00:00]} 17. Qe1 {[%clk 0:00:00]}  d5 {[%clk 0:00:00]} 18. exd5 {[%clk 0:00:00]}  cxd5 {[%clk 0:00:00]} 19. Bb3 {[%clk 0:00:00]}  Be6 {[%clk 0:00:00]} 20. Qg3 {[%clk 0:00:00]}  Rb5 {[%clk 0:00:00]} 21. Nxe5 {[%clk 0:00:00]}  Nxe5 {[%clk 0:00:00]} 22. Qxe5 {[%clk 0:00:00]}  Rxa5 {[%clk 0:00:00]} 23. Rxa5 {[%clk 0:00:00]}  Qxa5 {[%clk 0:00:00]} 24. Kh1 {[%clk 0:00:00]}  Qb6 {[%clk 0:00:00]} 25. Qd4 {[%clk 0:00:00]}  Qxd4 {[%clk 0:00:00]} 26. exd4 {[%clk 0:00:00]}  a5 {[%clk 0:00:00]} 27. Ra1 {[%clk 0:00:00]}  Ra8 {[%clk 0:00:00]} 28. Kg1 {[%clk 0:00:00]}  Kf8 {[%clk 0:00:00]} 29. Kf2 {[%clk 0:00:00]}  Ke7 {[%clk 0:00:00]} 30. Ke3 {[%clk 0:00:00]}  Kd6 {[%clk 0:00:00]} 31. Kd2 {[%clk 0:00:00]}  Bd7 {[%clk 0:00:00]} 32. c4 {[%clk 0:00:00]}  a4 {[%clk 0:00:00]} 33. c5+ {[%clk 0:00:00]}  Ke6 {[%clk 0:00:00]} 34. Re1+ {[%clk 0:00:00]}  Kf6 {[%clk 0:00:00]} 35. Bxd5 {[%clk 0:00:00]}  Ra5 {[%clk 0:00:00]} 36. Rf1+ {[%clk 0:00:00]}  Kg5 {[%clk 0:00:00]} 37. Rxf7 {[%clk 0:00:00]}  Bf5 {[%clk 0:00:00]} 38. Rxg7+ {[%clk 0:00:00]}  Kf6 {[%clk 0:00:00]} 39. Rf7+ {[%clk 0:00:00]}  Kg6 {[%clk 0:00:00]} 40. g4 {[%clk 0:00:00]}  Bc8 {[%clk 0:00:00]} 41. Rc7 {[%clk 0:00:00]}  Ba6 {[%clk 0:00:00]} 42. Be4+ {[%clk 0:00:00]}  Kg5 {[%clk 0:00:00]} 43. d5 {[%clk 0:00:00]}  a3 {[%clk 0:00:00]} 44. d6 {[%clk 0:00:00]}  Bb5 {[%clk 0:00:00]} 45. bxa3 {[%clk 0:00:00]}  bxa3 {[%clk 0:00:00]} 46. c6 {[%clk 0:00:00]}  a2 {[%clk 0:00:00]} 47. d7 {[%clk 0:00:00]}  Ra8 {[%clk 0:00:00]} 48. Rc8 {[%clk 0:00:00]}  Rxc8 {[%clk 0:00:00]} 49. dxc8=Q {[%clk 0:00:00]}  a1=Q {[%clk 0:00:00]} 50. Qf5+ {[%clk 0:00:00]}  Kh4 {[%clk 0:00:00]} 51. Qxb5 {[%clk 0:00:00]}  Kxh3 {[%clk 0:00:00]} 52. Bf5 {[%clk 0:00:00]}  Qa2+ {[%clk 0:00:00]} 53. Ke3 {[%clk 0:00:00]}  h5 {[%clk 0:00:00]} 54. Qc4 {[%clk 0:00:00]}  h4 {[%clk 0:00:00]} 55. g5+ {[%clk 0:00:00]}  Kg3 {[%clk 0:00:00]} 56. Qxa2 {[%clk 0:00:00]}  h3 {[%clk 0:00:00]} 57. Qf2# {[%clk 0:00:00]} 1-0


[Site "https://www.chess.com"]

[Event "Titled Tuesday Blitz August 16 Early 2022"]
[White "Korelskiy, Egor"]
[Black "Yurasova, Daria"]
[WhiteFideId "34329064"]
[BlackFideId "34146919"]
[WhiteElo "2077"]
[BlackElo "2021"]
[Result "1-0"]
[Round "11"]
[TimeControl "180+2"]
[Date "2022.08.18"]
[WhiteClock "0:00:00"]
[BlackClock "0:00:00"]

1. e4 {[%clk 0:00:00]}  e5 {[%clk 0:00:00]} 2. Nf3 {[%clk 0:00:00]}  Nc6 {[%clk 0:00:00]} 3. Bb5 {[%clk 0:00:00]}  a6 {[%clk 0:00:00]} 4. Ba4 {[%clk 0:00:00]}  Nf6 {[%clk 0:00:00]} 5. O-O {[%clk 0:00:00]}  b5 {[%clk 0:00:00]} 6. Bb3 {[%clk 0:00:00]}  Bc5 {[%clk 0:00:00]} 7. c3 {[%clk 0:00:00]}  d6 {[%clk 0:00:00]} 8. d4 {[%clk 0:00:00]}  Bb6 {[%clk 0:00:00]} 9. Re1 {[%clk 0:00:00]}  Bb7 {[%clk 0:00:00]} 10. Bc2 {[%clk 0:00:00]}  h6 {[%clk 0:00:00]} 11. h3 {[%clk 0:00:00]}  O-O {[%clk 0:00:00]} 12. Be3 {[%clk 0:00:00]}  Ba7 {[%clk 0:00:00]} 13. Nbd2 {[%clk 0:00:00]}  Re8 {[%clk 0:00:00]} 14. Rc1 {[%clk 0:00:00]}  exd4 {[%clk 0:00:00]} 15. Nxd4 {[%clk 0:00:00]}  Nxd4 {[%clk 0:00:00]} 16. cxd4 {[%clk 0:00:00]}  c5 {[%clk 0:00:00]} 17. d5 {[%clk 0:00:00]}  c4 {[%clk 0:00:00]} 18. Bxa7 {[%clk 0:00:00]}  Rxa7 {[%clk 0:00:00]} 19. Qf3 {[%clk 0:00:00]}  Nd7 {[%clk 0:00:00]} 20. b3 {[%clk 0:00:00]}  Ne5 {[%clk 0:00:00]} 21. Qe3 {[%clk 0:00:00]}  Ra8 {[%clk 0:00:00]} 22. bxc4 {[%clk 0:00:00]}  Nxc4 {[%clk 0:00:00]} 23. Nxc4 {[%clk 0:00:00]}  bxc4 {[%clk 0:00:00]} 24. Qd4 {[%clk 0:00:00]}  Rc8 {[%clk 0:00:00]} 25. Ba4 {[%clk 0:00:00]}  Re7 {[%clk 0:00:00]} 26. Rxc4 {[%clk 0:00:00]}  Rxc4 {[%clk 0:00:00]} 27. Qxc4 {[%clk 0:00:00]}  Qa5 {[%clk 0:00:00]} 28. Rc1 {[%clk 0:00:00]}  Qd2 {[%clk 0:00:00]} 29. Qc2 {[%clk 0:00:00]}  Qd4 {[%clk 0:00:00]} 30. Bc6 {[%clk 0:00:00]}  Bc8 {[%clk 0:00:00]} 31. Re1 {[%clk 0:00:00]}  Bf5 {[%clk 0:00:00]} 32. Qb3 {[%clk 0:00:00]}  Bxe4 {[%clk 0:00:00]} 33. Qb8+ {[%clk 0:00:00]}  Kh7 {[%clk 0:00:00]} 34. Qxd6 {[%clk 0:00:00]}  Re5 {[%clk 0:00:00]} 35. Kh2 {[%clk 0:00:00]}  Rf5 {[%clk 0:00:00]} 36. f3 {[%clk 0:00:00]}  Bxf3 {[%clk 0:00:00]} 37. Qg3 {[%clk 0:00:00]}  Qf2 {[%clk 0:00:00]} 38. Qxf2 {[%clk 0:00:00]}  Be4 {[%clk 0:00:00]} 39. Qxf5+ {[%clk 0:00:00]}  Bxf5 {[%clk 0:00:00]} 40. d6 {[%clk 0:00:00]}  Bd7 {[%clk 0:00:00]} 41. Bxd7 {[%clk 0:00:00]} 1-0


[Site "https://www.chess.com"]

[Event "Titled Tuesday Blitz August 16 Early 2022"]
[White "Kotepalli, Sai Nirupama"]
[Black "Atanasov, Anthony"]
[WhiteFideId "5039444"]
[BlackFideId "2623897"]
[WhiteElo "1910"]
[BlackElo "1928"]
[Result "0-1"]
[Round "11"]
[TimeControl "180+2"]
[Date "2022.08.18"]
[WhiteClock "0:00:00"]
[BlackClock "0:00:00"]

1. e4 {[%clk 0:00:00]}  c5 {[%clk 0:00:00]} 2. Nf3 {[%clk 0:00:00]}  d6 {[%clk 0:00:00]} 3. d3 {[%clk 0:00:00]}  Nf6 {[%clk 0:00:00]} 4. g3 {[%clk 0:00:00]}  Nc6 {[%clk 0:00:00]} 5. Bg2 {[%clk 0:00:00]}  g6 {[%clk 0:00:00]} 6. O-O {[%clk 0:00:00]}  Bg7 {[%clk 0:00:00]} 7. c3 {[%clk 0:00:00]}  O-O {[%clk 0:00:00]} 8. Qe2 {[%clk 0:00:00]}  Bg4 {[%clk 0:00:00]} 9. a3 {[%clk 0:00:00]}  a5 {[%clk 0:00:00]} 10. a4 {[%clk 0:00:00]}  d5 {[%clk 0:00:00]} 11. e5 {[%clk 0:00:00]}  Nd7 {[%clk 0:00:00]} 12. Bf4 {[%clk 0:00:00]}  Ndxe5 {[%clk 0:00:00]} 13. Nbd2 {[%clk 0:00:00]}  d4 {[%clk 0:00:00]} 14. c4 {[%clk 0:00:00]}  f5 {[%clk 0:00:00]} 15. h3 {[%clk 0:00:00]}  Nxf3+ {[%clk 0:00:00]} 16. Nxf3 {[%clk 0:00:00]}  Bxf3 {[%clk 0:00:00]} 17. Bxf3 {[%clk 0:00:00]}  e5 {[%clk 0:00:00]} 18. Bd2 {[%clk 0:00:00]}  Qd7 {[%clk 0:00:00]} 19. Bd5+ {[%clk 0:00:00]}  Kh8 {[%clk 0:00:00]} 20. f4 {[%clk 0:00:00]}  Rae8 {[%clk 0:00:00]} 21. Qg2 {[%clk 0:00:00]}  Re7 {[%clk 0:00:00]} 22. Bxc6 {[%clk 0:00:00]}  Qxc6 {[%clk 0:00:00]} 23. Bxa5 {[%clk 0:00:00]}  e4 {[%clk 0:00:00]} 24. b4 {[%clk 0:00:00]}  b6 {[%clk 0:00:00]} 25. b5 {[%clk 0:00:00]}  Qb7 {[%clk 0:00:00]} 26. Bd2 {[%clk 0:00:00]}  Ra8 {[%clk 0:00:00]} 27. a5 {[%clk 0:00:00]}  e3 {[%clk 0:00:00]} 28. Qxb7 {[%clk 0:00:00]}  Rxb7 {[%clk 0:00:00]} 29. Be1 {[%clk 0:00:00]}  Rba7 {[%clk 0:00:00]} 30. a6 {[%clk 0:00:00]}  Re7 {[%clk 0:00:00]} 31. Rf3 {[%clk 0:00:00]}  h6 {[%clk 0:00:00]} 32. g4 {[%clk 0:00:00]}  Rf8 {[%clk 0:00:00]} 33. g5 {[%clk 0:00:00]}  Kh7 {[%clk 0:00:00]} 34. h4 {[%clk 0:00:00]}  Kg8 {[%clk 0:00:00]} 35. Kf1 {[%clk 0:00:00]}  Ra7 {[%clk 0:00:00]} 36. Ke2 {[%clk 0:00:00]}  Kf7 {[%clk 0:00:00]} 37. Rg3 {[%clk 0:00:00]}  Rh8 {[%clk 0:00:00]} 38. Rh3 {[%clk 0:00:00]}  hxg5 {[%clk 0:00:00]} 39. fxg5 {[%clk 0:00:00]}  Ke6 {[%clk 0:00:00]} 40. Rf3 {[%clk 0:00:00]}  Be5 {[%clk 0:00:00]} 41. Ra2 {[%clk 0:00:00]}  f4 {[%clk 0:00:00]} 42. Ra1 {[%clk 0:00:00]}  Kf5 {[%clk 0:00:00]} 43. Ra2 {[%clk 0:00:00]}  Kg4 {[%clk 0:00:00]} 44. Ra1 {[%clk 0:00:00]}  Rhh7 {[%clk 0:00:00]} 45. Ra2 {[%clk 0:00:00]}  Rh5 {[%clk 0:00:00]} 46. Ra1 {[%clk 0:00:00]}  Ra8 {[%clk 0:00:00]} 47. Ra2 {[%clk 0:00:00]}  Rah8 {[%clk 0:00:00]} 48. a7 {[%clk 0:00:00]}  Ra8 {[%clk 0:00:00]} 49. Rf1 {[%clk 0:00:00]}  Rh7 {[%clk 0:00:00]} 50. Ra6 {[%clk 0:00:00]}  Rb7 {[%clk 0:00:00]} 51. Rg1+ {[%clk 0:00:00]}  Kf5 {[%clk 0:00:00]} 52. Kf3 {[%clk 0:00:00]}  Raxa7 {[%clk 0:00:00]} 0-1


[Site "https://www.chess.com"]

[Event "Titled Tuesday Blitz August 16 Early 2022"]
[White "Lakshmi C"]
[Black "Zherebtsova, Alexandra"]
[WhiteFideId "25035347"]
[BlackFideId "24129518"]
[WhiteElo "1775"]
[BlackElo "2025"]
[Result "1/2-1/2"]
[Round "11"]
[TimeControl "180+2"]
[Date "2022.08.18"]
[WhiteClock "0:00:00"]
[BlackClock "0:00:00"]

1. e4 {[%clk 0:00:00]}  e5 {[%clk 0:00:00]} 2. Nf3 {[%clk 0:00:00]}  Nc6 {[%clk 0:00:00]} 3. Bb5 {[%clk 0:00:00]}  a6 {[%clk 0:00:00]} 4. Ba4 {[%clk 0:00:00]}  Nf6 {[%clk 0:00:00]} 5. O-O {[%clk 0:00:00]}  Be7 {[%clk 0:00:00]} 6. Re1 {[%clk 0:00:00]}  b5 {[%clk 0:00:00]} 7. Bb3 {[%clk 0:00:00]}  d6 {[%clk 0:00:00]} 8. c3 {[%clk 0:00:00]}  O-O {[%clk 0:00:00]} 9. h3 {[%clk 0:00:00]}  Bb7 {[%clk 0:00:00]} 10. d4 {[%clk 0:00:00]}  Re8 {[%clk 0:00:00]} 11. Nbd2 {[%clk 0:00:00]}  Bf8 {[%clk 0:00:00]} 12. Bc2 {[%clk 0:00:00]}  g6 {[%clk 0:00:00]} 13. a4 {[%clk 0:00:00]}  Bg7 {[%clk 0:00:00]} 14. Bb1 {[%clk 0:00:00]}  Qd7 {[%clk 0:00:00]} 15. Nf1 {[%clk 0:00:00]}  exd4 {[%clk 0:00:00]} 16. cxd4 {[%clk 0:00:00]}  Nb4 {[%clk 0:00:00]} 17. Ng3 {[%clk 0:00:00]}  a5 {[%clk 0:00:00]} 18. axb5 {[%clk 0:00:00]}  Qxb5 {[%clk 0:00:00]} 19. Ra3 {[%clk 0:00:00]}  Re7 {[%clk 0:00:00]} 20. d5 {[%clk 0:00:00]}  Nd7 {[%clk 0:00:00]} 21. Nd4 {[%clk 0:00:00]}  Qa6 {[%clk 0:00:00]} 22. Nb3 {[%clk 0:00:00]}  Qb5 {[%clk 0:00:00]} 23. Nd4 {[%clk 0:00:00]}  Qa6 {[%clk 0:00:00]} 24. Nb3 {[%clk 0:00:00]}  Qb5 {[%clk 0:00:00]} 25. Nd4 {[%clk 0:00:00]} 1/2-1/2


[Site "https://www.chess.com"]

[Event "Titled Tuesday Blitz August 16 Early 2022"]
[White "Le, Tuan Minh"]
[Black "Grandelius, Nils"]
[WhiteFideId "12401153"]
[BlackFideId "1710400"]
[WhiteElo "2530"]
[BlackElo "2617"]
[Result "1-0"]
[Round "11"]
[TimeControl "180+1"]
[Date "2022.08.16"]
[WhiteClock "0:00:39"]
[BlackClock "0:00:12"]

1. d4 {[%clk 0:03:00]}  Nf6 {[%clk 0:03:00]} 2. Nf3 {[%clk 0:03:01]}  g6 {[%clk 0:02:57]} 3. Bg5 {[%clk 0:03:01]}  Bg7 {[%clk 0:02:56]} 4. Nbd2 {[%clk 0:03:01]}  d6 {[%clk 0:02:52]} 5. c3 {[%clk 0:03:01]}  O-O {[%clk 0:02:51]} 6. e4 {[%clk 0:03:01]}  c5 {[%clk 0:02:51]} 7. dxc5 {[%clk 0:03:01]}  dxc5 {[%clk 0:02:52]} 8. Bc4 {[%clk 0:03:01]}  Nc6 {[%clk 0:02:52]} 9. Qe2 {[%clk 0:03:02]}  h6 {[%clk 0:02:48]} 10. Bxf6 {[%clk 0:03:01]}  exf6 {[%clk 0:02:47]} 11. O-O {[%clk 0:03:01]}  Qe7 {[%clk 0:02:42]} 12. Rae1 {[%clk 0:02:58]}  h5 {[%clk 0:02:25]} 13. Nh4 {[%clk 0:02:50]}  Be6 {[%clk 0:02:18]} 14. f4 {[%clk 0:02:42]}  Bxc4 {[%clk 0:01:49]} 15. Qxc4 {[%clk 0:02:41]}  Na5 {[%clk 0:01:49]} 16. Qe2 {[%clk 0:02:35]}  f5 {[%clk 0:01:47]} 17. Nhf3 {[%clk 0:02:31]}  fxe4 {[%clk 0:01:47]} 18. Nxe4 {[%clk 0:02:32]}  Rfe8 {[%clk 0:01:37]} 19. Qb5 {[%clk 0:02:30]}  Nc6 {[%clk 0:01:24]} 20. Qxc5 {[%clk 0:02:21]}  Qc7 {[%clk 0:01:23]} 21. f5 {[%clk 0:02:15]}  Qb6 {[%clk 0:01:17]} 22. fxg6 {[%clk 0:01:37]}  fxg6 {[%clk 0:01:16]} 23. Kh1 {[%clk 0:01:37]}  Qxc5 {[%clk 0:01:14]} 24. Nxc5 {[%clk 0:01:38]}  b6 {[%clk 0:01:11]} 25. Ne6 {[%clk 0:01:37]}  Na5 {[%clk 0:01:04]} 26. Nh4 {[%clk 0:01:10]}  Nc4 {[%clk 0:00:53]} 27. Nxg6 {[%clk 0:01:09]}  Nxb2 {[%clk 0:00:53]} 28. Ngf4 {[%clk 0:01:01]}  h4 {[%clk 0:00:34]} 29. g3 {[%clk 0:00:53]}  Bxc3 {[%clk 0:00:30]} 30. Re2 {[%clk 0:00:50]}  Na4 {[%clk 0:00:14]} 31. gxh4 {[%clk 0:00:45]}  Nc5 {[%clk 0:00:15]} 32. Rg2+ {[%clk 0:00:45]}  Kh8 {[%clk 0:00:12]} 33. Nc7 {[%clk 0:00:39]} 1-0


[Site "https://www.chess.com"]

[Event "Titled Tuesday Blitz August 16 Early 2022"]
[White "Legenia, Artem"]
[Black "McBryde, Lamel"]
[WhiteFideId "14136945"]
[BlackFideId "2058596"]
[WhiteElo "1936"]
[BlackElo "2136"]
[Result "1-0"]
[Round "11"]
[TimeControl "180+2"]
[Date "2022.08.18"]
[WhiteClock "0:00:00"]
[BlackClock "0:00:00"]

1. d4 {[%clk 0:00:00]}  Nf6 {[%clk 0:00:00]} 2. Nf3 {[%clk 0:00:00]}  g6 {[%clk 0:00:00]} 3. Bf4 {[%clk 0:00:00]}  Bg7 {[%clk 0:00:00]} 4. e3 {[%clk 0:00:00]}  O-O {[%clk 0:00:00]} 5. h3 {[%clk 0:00:00]}  d5 {[%clk 0:00:00]} 6. Bd3 {[%clk 0:00:00]}  Ne4 {[%clk 0:00:00]} 7. Nbd2 {[%clk 0:00:00]}  Nd6 {[%clk 0:00:00]} 8. c3 {[%clk 0:00:00]}  f6 {[%clk 0:00:00]} 9. O-O {[%clk 0:00:00]}  Nf7 {[%clk 0:00:00]} 10. Bh2 {[%clk 0:00:00]}  e5 {[%clk 0:00:00]} 11. e4 {[%clk 0:00:00]}  dxe4 {[%clk 0:00:00]} 12. Nxe4 {[%clk 0:00:00]}  f5 {[%clk 0:00:00]} 13. dxe5 {[%clk 0:00:00]}  fxe4 {[%clk 0:00:00]} 14. Bxe4 {[%clk 0:00:00]}  Qe7 {[%clk 0:00:00]} 15. Re1 {[%clk 0:00:00]}  Nc6 {[%clk 0:00:00]} 16. Qa4 {[%clk 0:00:00]}  Bd7 {[%clk 0:00:00]} 17. Qb3 {[%clk 0:00:00]}  Na5 {[%clk 0:00:00]} 18. Qb4 {[%clk 0:00:00]}  Qxb4 {[%clk 0:00:00]} 19. cxb4 {[%clk 0:00:00]}  Nc6 {[%clk 0:00:00]} 20. e6 {[%clk 0:00:00]}  Bxe6 {[%clk 0:00:00]} 21. Bxc6 {[%clk 0:00:00]}  bxc6 {[%clk 0:00:00]} 22. Rxe6 {[%clk 0:00:00]}  Rab8 {[%clk 0:00:00]} 23. Rxc6 {[%clk 0:00:00]}  Rxb4 {[%clk 0:00:00]} 24. Rxc7 {[%clk 0:00:00]}  Rxb2 {[%clk 0:00:00]} 25. Rxa7 {[%clk 0:00:00]}  Rc8 {[%clk 0:00:00]} 26. Re1 {[%clk 0:00:00]}  Bf6 {[%clk 0:00:00]} 27. Bg3 {[%clk 0:00:00]}  Rcc2 {[%clk 0:00:00]} 28. a4 {[%clk 0:00:00]}  Ra2 {[%clk 0:00:00]} 29. a5 {[%clk 0:00:00]}  Ra1 {[%clk 0:00:00]} 30. Rxa1 {[%clk 0:00:00]}  Bxa1 {[%clk 0:00:00]} 31. a6 {[%clk 0:00:00]}  Ra2 {[%clk 0:00:00]} 32. Bf4 {[%clk 0:00:00]}  h6 {[%clk 0:00:00]} 33. Be3 {[%clk 0:00:00]}  g5 {[%clk 0:00:00]} 34. Ra8+ {[%clk 0:00:00]}  Kg7 {[%clk 0:00:00]} 35. a7 {[%clk 0:00:00]}  Nd6 {[%clk 0:00:00]} 36. Rd8 {[%clk 0:00:00]} 1-0


[Site "https://www.chess.com"]

[Event "Titled Tuesday Blitz August 16 Early 2022"]
[White "Lehtosaari, Mauri"]
[Black "Kohler, Aran"]
[WhiteFideId "501999"]
[BlackFideId "1002856"]
[WhiteElo "2200"]
[BlackElo "2060"]
[Result "0-1"]
[Round "11"]
[TimeControl "180+2"]
[Date "2022.08.18"]
[WhiteClock "0:00:00"]
[BlackClock "0:00:00"]

1. d4 {[%clk 0:00:00]}  d5 {[%clk 0:00:00]} 2. Nf3 {[%clk 0:00:00]}  c6 {[%clk 0:00:00]} 3. Bg5 {[%clk 0:00:00]}  Bf5 {[%clk 0:00:00]} 4. c3 {[%clk 0:00:00]}  e6 {[%clk 0:00:00]} 5. Nbd2 {[%clk 0:00:00]}  Qb6 {[%clk 0:00:00]} 6. Qb3 {[%clk 0:00:00]}  f6 {[%clk 0:00:00]} 7. Bh4 {[%clk 0:00:00]}  g5 {[%clk 0:00:00]} 8. Bg3 {[%clk 0:00:00]}  Nd7 {[%clk 0:00:00]} 9. e3 {[%clk 0:00:00]}  h5 {[%clk 0:00:00]} 10. h4 {[%clk 0:00:00]}  g4 {[%clk 0:00:00]} 11. Ng1 {[%clk 0:00:00]}  Nh6 {[%clk 0:00:00]} 12. Bf4 {[%clk 0:00:00]}  Nf7 {[%clk 0:00:00]} 13. Ne2 {[%clk 0:00:00]}  e5 {[%clk 0:00:00]} 14. Bg3 {[%clk 0:00:00]}  Bd6 {[%clk 0:00:00]} 15. c4 {[%clk 0:00:00]}  Qxb3 {[%clk 0:00:00]} 16. axb3 {[%clk 0:00:00]}  a5 {[%clk 0:00:00]} 17. c5 {[%clk 0:00:00]}  Bb8 {[%clk 0:00:00]} 18. Nc3 {[%clk 0:00:00]}  exd4 {[%clk 0:00:00]} 19. exd4 {[%clk 0:00:00]}  Bxg3 {[%clk 0:00:00]} 20. fxg3 {[%clk 0:00:00]}  O-O {[%clk 0:00:00]} 21. Kf2 {[%clk 0:00:00]}  Rfe8 {[%clk 0:00:00]} 22. Be2 {[%clk 0:00:00]}  b6 {[%clk 0:00:00]} 23. cxb6 {[%clk 0:00:00]}  Nxb6 {[%clk 0:00:00]} 24. Na4 {[%clk 0:00:00]}  Nxa4 {[%clk 0:00:00]} 25. Rxa4 {[%clk 0:00:00]}  Bd7 {[%clk 0:00:00]} 26. Rha1 {[%clk 0:00:00]}  Nd6 {[%clk 0:00:00]} 27. Rxa5 {[%clk 0:00:00]}  Rxa5 {[%clk 0:00:00]} 28. Rxa5 {[%clk 0:00:00]}  Ne4+ {[%clk 0:00:00]} 29. Nxe4 {[%clk 0:00:00]}  Rxe4 {[%clk 0:00:00]} 30. Ra8+ {[%clk 0:00:00]}  Kf7 {[%clk 0:00:00]} 31. Bd3 {[%clk 0:00:00]}  Rxd4 {[%clk 0:00:00]} 32. Ke3 {[%clk 0:00:00]}  Rb4 {[%clk 0:00:00]} 33. Ra7 {[%clk 0:00:00]}  Ke6 {[%clk 0:00:00]} 34. Bc2 {[%clk 0:00:00]}  c5 {[%clk 0:00:00]} 35. Ra6+ {[%clk 0:00:00]}  Ke5 {[%clk 0:00:00]} 36. Ra7 {[%clk 0:00:00]}  d4+ {[%clk 0:00:00]} 37. Kd2 {[%clk 0:00:00]}  Bc6 {[%clk 0:00:00]} 38. Rh7 {[%clk 0:00:00]}  Bxg2 {[%clk 0:00:00]} 39. Rxh5+ {[%clk 0:00:00]}  Ke6 {[%clk 0:00:00]} 40. Rxc5 {[%clk 0:00:00]}  Bd5 {[%clk 0:00:00]} 41. h5 {[%clk 0:00:00]}  Bxb3 {[%clk 0:00:00]} 42. Rc6+ {[%clk 0:00:00]}  Kf7 {[%clk 0:00:00]} 43. Bg6+ {[%clk 0:00:00]}  Kg7 {[%clk 0:00:00]} 44. Rc7+ {[%clk 0:00:00]}  Kh6 {[%clk 0:00:00]} 45. Rh7+ {[%clk 0:00:00]}  Kg5 {[%clk 0:00:00]} 46. Bd3 {[%clk 0:00:00]}  Be6 {[%clk 0:00:00]} 47. Re7 {[%clk 0:00:00]}  Bf5 {[%clk 0:00:00]} 48. Bxf5 {[%clk 0:00:00]}  Kxf5 {[%clk 0:00:00]} 49. Kc2 {[%clk 0:00:00]}  d3+ {[%clk 0:00:00]} 50. Kc3 {[%clk 0:00:00]}  d2 {[%clk 0:00:00]} 51. Rd7 {[%clk 0:00:00]}  Rb8 {[%clk 0:00:00]} 52. Rd5+ {[%clk 0:00:00]}  Ke4 {[%clk 0:00:00]} 53. Rxd2 {[%clk 0:00:00]}  Kf3 {[%clk 0:00:00]} 54. Rd3+ {[%clk 0:00:00]}  Kf2 {[%clk 0:00:00]} 55. b4 {[%clk 0:00:00]}  Rh8 {[%clk 0:00:00]} 56. b5 {[%clk 0:00:00]}  Rxh5 {[%clk 0:00:00]} 57. Kc4 {[%clk 0:00:00]}  Rh8 {[%clk 0:00:00]} 58. b6 {[%clk 0:00:00]}  f5 {[%clk 0:00:00]} 59. Kc5 {[%clk 0:00:00]}  f4 {[%clk 0:00:00]} 60. gxf4 {[%clk 0:00:00]}  g3 {[%clk 0:00:00]} 61. Kc6 {[%clk 0:00:00]}  g2 {[%clk 0:00:00]} 62. Rd2+ {[%clk 0:00:00]}  Kf1 {[%clk 0:00:00]} 0-1


[Site "https://www.chess.com"]